Workbook

Sheet Tableau Boîtes N95
A1: Mont-Laurier - 10 | J1: Rivière Rouge - 20 | R1: Légende
A2: Masques | B2: GRM | C2: Concatener | D2: Moyenne consommation | E2: Nombre de jours restants | F2: Quantité en inventaire en unité | G2: Prévision pour 14 jours | J2: Masques | K2: GRM | L2: Concatener | M2: Moyenne consommation | N2: Nombre de jours restants | O2: =F2 -> Quantité en inventaire en unité | P2: =G2 -> Prévision pour 14 jours | R2: Rupture
A3: 3M1870PLUS | B3: 42016822 | C3: 4201682210 | D3: =INDEX('[1]FEUILLE DE TRAVAIL'!$A:$AV,MATCH('Tableau Boîtes N95'!C3,'[1]FEUILLE DE TRAVAIL'!$I:$I,0),39) -> 0 | E3: =IFERROR(F3/D3,F3) -> 1080 | F3: =INDEX('[1]FEUILLE DE TRAVAIL'!$A:$AV,MATCH('Tableau Boîtes N95'!C3,'[1]FEUILLE DE TRAVAIL'!$I:$I,0),19) -> 1080 | J3: 3M1870PLUS | K3: 42016822 | L3: 4201682220 | M3: =INDEX('[1]FEUILLE DE TRAVAIL'!$A:$AV,MATCH('Tableau Boîtes N95'!L3,'[1]FEUILLE DE TRAVAIL'!$I:$I,0),39) -> 2.857142857 | N3: =IFERROR(O3/M3,O3) -> 560 | O3: =INDEX('[1]FEUILLE DE TRAVAIL'!$A:$AV,MATCH('Tableau Boîtes N95'!L3,'[1]FEUILLE DE TRAVAIL'!$I:$I,0),19) -> 1600 | R3: Vigie
A4: 800-1860 | B4: 42009417 | C4: 4200941710 | D4: =INDEX('[1]FEUILLE DE TRAVAIL'!$A:$AV,MATCH('Tableau Boîtes N95'!C4,'[1]FEUILLE DE TRAVAIL'!$I:$I,0),39) -> 0 | E4: =IFERROR(F4/D4,F4) -> 360 | F4: =INDEX('[1]FEUILLE DE TRAVAIL'!$A:$AV,MATCH('Tableau Boîtes N95'!C4,'[1]FEUILLE DE TRAVAIL'!$I:$I,0),19) -> 360 | J4: 800-1860 | K4: 42009417 | L4: 4200941720 | M4: =INDEX('[1]FEUILLE DE TRAVAIL'!$A:$AV,MATCH('Tableau Boîtes N95'!L4,'[1]FEUILLE DE TRAVAIL'!$I:$I,0),39) -> 0 | N4: =IFERROR(O4/M4,O4) -> 409 | O4: =INDEX('[1]FEUILLE DE TRAVAIL'!$A:$AV,MATCH('Tableau Boîtes N95'!L4,'[1]FEUILLE DE TRAVAIL'!$I:$I,0),19) -> 409 | R4: Quantités suffisantes
A5: A1510 | B5: 42009438 | C5: 4200943810 | D5: =INDEX('[1]FEUILLE DE TRAVAIL'!$A:$AV,MATCH('Tableau Boîtes N95'!C5,'[1]FEUILLE DE TRAVAIL'!$I:$I,0),39) -> 0 | E5: 1120 | F5: =INDEX('[1]FEUILLE DE TRAVAIL'!$A:$AV,MATCH('Tableau Boîtes N95'!C5,'[1]FEUILLE DE TRAVAIL'!$I:$I,0),19) -> 1120 | J5: 800-1860S | K5: 42009418 | L5: 4200941820 | M5: =INDEX('[1]FEUILLE DE TRAVAIL'!$A:$AV,MATCH('Tableau Boîtes N95'!L5,'[1]FEUILLE DE TRAVAIL'!$I:$I,0),39) -> 0 | N5: 577 | O5: =INDEX('[1]FEUILLE DE TRAVAIL'!$A:$AV,MATCH('Tableau Boîtes N95'!L5,'[1]FEUILLE DE TRAVAIL'!$I:$I,0),19) -> 577 | R5: Catégorie générale | S5: Masque N95
A6: A1511 | B6: 42009440 | C6: 4200944010 | D6: =INDEX('[1]FEUILLE DE TRAVAIL'!$A:$AV,MATCH('Tableau Boîtes N95'!C6,'[1]FEUILLE DE TRAVAIL'!$I:$I,0),39) -> 0 | E6: 940 | F6: =INDEX('[1]FEUILLE DE TRAVAIL'!$A:$AV,MATCH('Tableau Boîtes N95'!C6,'[1]FEUILLE DE TRAVAIL'!$I:$I,0),19) -> 940 | J6: A1510 | K6: 42009438 | L6: 4200943820 | M6: =INDEX('[1]FEUILLE DE TRAVAIL'!$A:$AV,MATCH('Tableau Boîtes N95'!L6,'[1]FEUILLE DE TRAVAIL'!$I:$I,0),39) -> 0 | N6: 540 | O6: =INDEX('[1]FEUILLE DE TRAVAIL'!$A:$AV,MATCH('Tableau Boîtes N95'!L6,'[1]FEUILLE DE TRAVAIL'!$I:$I,0),19) -> 540 | R6: # Magasin | S6: 54
A7: A1512 | B7: 42009439 | C7: 4200943910 | D7: =INDEX('[1]FEUILLE DE TRAVAIL'!$A:$AV,MATCH('Tableau Boîtes N95'!C7,'[1]FEUILLE DE TRAVAIL'!$I:$I,0),39) -> 0 | E7: 2488 | F7: =INDEX('[1]FEUILLE DE TRAVAIL'!$A:$AV,MATCH('Tableau Boîtes N95'!C7,'[1]FEUILLE DE TRAVAIL'!$I:$I,0),19) -> 2488 | J7: A1511 | K7: 42009440 | L7: 4200944020 | M7: =INDEX('[1]FEUILLE DE TRAVAIL'!$A:$AV,MATCH('Tableau Boîtes N95'!L7,'[1]FEUILLE DE TRAVAIL'!$I:$I,0),39) -> 0.3571428571 | N7: 663.6 | O7: =INDEX('[1]FEUILLE DE TRAVAIL'!$A:$AV,MATCH('Tableau Boîtes N95'!L7,'[1]FEUILLE DE TRAVAIL'!$I:$I,0),19) -> 237 | R7: RÉSERVE
A8: KC46727 | B8: 42009446 | C8: 4200944610 | D8: =INDEX('[1]FEUILLE DE TRAVAIL'!$A:$AV,MATCH('Tableau Boîtes N95'!C8,'[1]FEUILLE DE TRAVAIL'!$I:$I,0),39) -> 0 | E8: 0 | F8: =INDEX('[1]FEUILLE DE TRAVAIL'!$A:$AV,MATCH('Tableau Boîtes N95'!C8,'[1]FEUILLE DE TRAVAIL'!$I:$I,0),19) -> 0 | J8: A1512 | K8: 42009439 | L8: 4200943920 | M8: =INDEX('[1]FEUILLE DE TRAVAIL'!$A:$AV,MATCH('Tableau Boîtes N95'!L8,'[1]FEUILLE DE TRAVAIL'!$I:$I,0),39) -> 1.428571429 | N8: 229.6 | O8: =INDEX('[1]FEUILLE DE TRAVAIL'!$A:$AV,MATCH('Tableau Boîtes N95'!L8,'[1]FEUILLE DE TRAVAIL'!$I:$I,0),19) -> 328 | R8: Étiquettes de lignes | S8: Quantité en Réserve | T8: Moyenne de Consommation moyenne | U8: Nombre de jours restants | V8: =G2 -> Prévision pour 14 jours
A9: KC46767 | B9: 42016845 | C9: 4201684510 | D9: =INDEX('[1]FEUILLE DE TRAVAIL'!$A:$AV,MATCH('Tableau Boîtes N95'!C9,'[1]FEUILLE DE TRAVAIL'!$I:$I,0),39) -> 0 | E9: 0 | F9: =INDEX('[1]FEUILLE DE TRAVAIL'!$A:$AV,MATCH('Tableau Boîtes N95'!C9,'[1]FEUILLE DE TRAVAIL'!$I:$I,0),19) -> 0 | J9: KC46727 | K9: 42009446 | L9: 4200944620 | M9: =INDEX('[1]FEUILLE DE TRAVAIL'!$A:$AV,MATCH('Tableau Boîtes N95'!L9,'[1]FEUILLE DE TRAVAIL'!$I:$I,0),39) -> 0 | N9: 325 | O9: =INDEX('[1]FEUILLE DE TRAVAIL'!$A:$AV,MATCH('Tableau Boîtes N95'!L9,'[1]FEUILLE DE TRAVAIL'!$I:$I,0),19) -> 325 | R9: 3M1870PLUS | S9: 1411248 | T9: 41.42857143 | U9: =IFERROR(S9/T9,S9) -> 34064.6069
A10: KC46827 | B10: 42039566 | C10: 4203956610 | D10: =INDEX('[1]FEUILLE DE TRAVAIL'!$A:$AV,MATCH('Tableau Boîtes N95'!C10,'[1]FEUILLE DE TRAVAIL'!$I:$I,0),39) -> 0 | E10: 0 | F10: =INDEX('[1]FEUILLE DE TRAVAIL'!$A:$AV,MATCH('Tableau Boîtes N95'!C10,'[1]FEUILLE DE TRAVAIL'!$I:$I,0),19) -> 0 | J10: KC46767 | K10: 42016845 | L10: 4201684520 | M10: =INDEX('[1]FEUILLE DE TRAVAIL'!$A:$AV,MATCH('Tableau Boîtes N95'!L10,'[1]FEUILLE DE TRAVAIL'!$I:$I,0),39) -> 1.071428571 | N10: 126 | O10: =INDEX('[1]FEUILLE DE TRAVAIL'!$A:$AV,MATCH('Tableau Boîtes N95'!L10,'[1]FEUILLE DE TRAVAIL'!$I:$I,0),19) -> 135 | R10: 3M8210N | S10: 9940 | T10: 0 | U10: 9940
A11: KC46867 | B11: 42018167 | C11: 4201816710 | D11: =INDEX('[1]FEUILLE DE TRAVAIL'!$A:$AV,MATCH('Tableau Boîtes N95'!C11,'[1]FEUILLE DE TRAVAIL'!$I:$I,0),39) -> 0 | E11: 0 | F11: =INDEX('[1]FEUILLE DE TRAVAIL'!$A:$AV,MATCH('Tableau Boîtes N95'!C11,'[1]FEUILLE DE TRAVAIL'!$I:$I,0),19) -> 0 | J11: KC46867 | K11: 42018167 | L11: 4201816720 | M11: =INDEX('[1]FEUILLE DE TRAVAIL'!$A:$AV,MATCH('Tableau Boîtes N95'!L11,'[1]FEUILLE DE TRAVAIL'!$I:$I,0),39) -> 0 | N11: 0 | O11: =INDEX('[1]FEUILLE DE TRAVAIL'!$A:$AV,MATCH('Tableau Boîtes N95'!L11,'[1]FEUILLE DE TRAVAIL'!$I:$I,0),19) -> 0 | R11: 3M9210 | S11: 533 | T11: 0 | U11: 533
A12: KC62126 | B12: 42009426 | C12: 4200942610 | D12: =INDEX('[1]FEUILLE DE TRAVAIL'!$A:$AV,MATCH('Tableau Boîtes N95'!C12,'[1]FEUILLE DE TRAVAIL'!$I:$I,0),39) -> 0 | E12: 0 | F12: =INDEX('[1]FEUILLE DE TRAVAIL'!$A:$AV,MATCH('Tableau Boîtes N95'!C12,'[1]FEUILLE DE TRAVAIL'!$I:$I,0),19) -> 0 | J12: KC62126 | K12: 42009426 | L12: 4200942620 | M12: =INDEX('[1]FEUILLE DE TRAVAIL'!$A:$AV,MATCH('Tableau Boîtes N95'!L12,'[1]FEUILLE DE TRAVAIL'!$I:$I,0),39) -> 0 | N12: 318 | O12: =INDEX('[1]FEUILLE DE TRAVAIL'!$A:$AV,MATCH('Tableau Boîtes N95'!L12,'[1]FEUILLE DE TRAVAIL'!$I:$I,0),19) -> 318 | R12: 800-1860 | S12: 11644 | T12: 0 | U12: 11644
A13: 203214 - MEDICOM PETIT | B13: 42052187 | C13: 4205218710 | D13: =INDEX('[1]FEUILLE DE TRAVAIL'!$A:$AV,MATCH('Tableau Boîtes N95'!C13,'[1]FEUILLE DE TRAVAIL'!$I:$I,0),39) -> 46.42857143 | E13: =IFERROR(F13/D13,F13) -> 93.69230769 | F13: =INDEX('[1]FEUILLE DE TRAVAIL'!$A:$AV,MATCH('Tableau Boîtes N95'!C13,'[1]FEUILLE DE TRAVAIL'!$I:$I,0),19) -> 4350 | J13: 203214 - MEDICOM PETIT | K13: 42052187 | L13: 4205218720 | M13: =INDEX('[1]FEUILLE DE TRAVAIL'!$A:$AV,MATCH('Tableau Boîtes N95'!L13,'[1]FEUILLE DE TRAVAIL'!$I:$I,0),39) -> 10.71428571 | N13: =IFERROR(O13/M13,O13) -> 779.3333333 | O13: =INDEX('[1]FEUILLE DE TRAVAIL'!$A:$AV,MATCH('Tableau Boîtes N95'!L13,'[1]FEUILLE DE TRAVAIL'!$I:$I,0),19) -> 8350 | R13: 800-1860S | S13: 4020 | T13: 0 | U13: 4020
A14: 203314 - MEDICOM MOYEN | B14: 42052188 | C14: 4205218810 | D14: =INDEX('[1]FEUILLE DE TRAVAIL'!$A:$AV,MATCH('Tableau Boîtes N95'!C14,'[1]FEUILLE DE TRAVAIL'!$I:$I,0),39) -> 50 | E14: 67 | F14: =INDEX('[1]FEUILLE DE TRAVAIL'!$A:$AV,MATCH('Tableau Boîtes N95'!C14,'[1]FEUILLE DE TRAVAIL'!$I:$I,0),19) -> 3350 | J14: 203314 - MEDICOM MOYEN | K14: 42052188 | L14: 4205218820 | M14: =INDEX('[1]FEUILLE DE TRAVAIL'!$A:$AV,MATCH('Tableau Boîtes N95'!L14,'[1]FEUILLE DE TRAVAIL'!$I:$I,0),39) -> 78.57142857 | N14: =IFERROR(O14/M14,O14) -> 89.09090909 | O14: =INDEX('[1]FEUILLE DE TRAVAIL'!$A:$AV,MATCH('Tableau Boîtes N95'!L14,'[1]FEUILLE DE TRAVAIL'!$I:$I,0),19) -> 7000 | R14: A1510 | S14: 13698 | T14: 0 | U14: 13698
A15: 203414 - MEDICOM LARGE | B15: 42053531 | C15: 4205353110 | D15: =INDEX('[1]FEUILLE DE TRAVAIL'!$A:$AV,MATCH('Tableau Boîtes N95'!C15,'[1]FEUILLE DE TRAVAIL'!$I:$I,0),39) -> 0 | E15: =IFERROR(F15/D15,F15) -> 0 | F15: =INDEX('[1]FEUILLE DE TRAVAIL'!$A:$AV,MATCH('Tableau Boîtes N95'!C15,'[1]FEUILLE DE TRAVAIL'!$I:$I,0),19) -> 0 | J15: 203414 - MEDICOM LARGE | K15: 42053531 | L15: 4205353120 | M15: =INDEX('[1]FEUILLE DE TRAVAIL'!$A:$AV,MATCH('Tableau Boîtes N95'!L15,'[1]FEUILLE DE TRAVAIL'!$I:$I,0),39) -> 46.42857143 | N15: =IFERROR(O15/M15,O15) -> 29.07692308 | O15: =INDEX('[1]FEUILLE DE TRAVAIL'!$A:$AV,MATCH('Tableau Boîtes N95'!L15,'[1]FEUILLE DE TRAVAIL'!$I:$I,0),19) -> 1350 | R15: A1511 | S15: 8860 | T15: 0 | U15: 8860
A16: F550 - CHAMPAK | B16: 42053795 | C16: 4205379510 | D16: =INDEX('[1]FEUILLE DE TRAVAIL'!$A:$AV,MATCH('Tableau Boîtes N95'!C16,'[1]FEUILLE DE TRAVAIL'!$I:$I,0),39) -> 0 | E16: =IFERROR(F16/D16,F16) -> 1770 | F16: =INDEX('[1]FEUILLE DE TRAVAIL'!$A:$AV,MATCH('Tableau Boîtes N95'!C16,'[1]FEUILLE DE TRAVAIL'!$I:$I,0),19) -> 1770 | J16: F550 - CHAMPAK | K16: 42053795 | L16: 4205379520 | M16: =INDEX('[1]FEUILLE DE TRAVAIL'!$A:$AV,MATCH('Tableau Boîtes N95'!L16,'[1]FEUILLE DE TRAVAIL'!$I:$I,0),39) -> 2.142857143 | N16: =IFERROR(O16/M16,O16) -> 812 | O16: =INDEX('[1]FEUILLE DE TRAVAIL'!$A:$AV,MATCH('Tableau Boîtes N95'!L16,'[1]FEUILLE DE TRAVAIL'!$I:$I,0),19) -> 1740 | R16: A1512 | S16: 6340 | T16: 0 | U16: 6340
R17: A1513 | S17: 2060 | T17: 0 | U17: 2060
A18: Sainte-Agathe - 30 | J18: Saint-Jérôme - 40 | R18: A1517 | S18: 1300 | T18: 0 | U18: 1300
A19: Masques | B19: GRM | C19: Concatener | D19: Moyenne consommation | E19: Nombre de jours restants | F19: =F2 -> Quantité en inventaire en unité | G19: =G2 -> Prévision pour 14 jours | J19: Masques | K19: GRM | L19: Concatener | M19: Moyenne consommation | N19: Nombre de jours restants | O19: =F2 -> Quantité en inventaire en unité | P19: =G2 -> Prévision pour 14 jours | R19: KC46727 | S19: 12100 | T19: 0 | U19: 12100
A20: 3M1870PLUS | B20: 42016822 | C20: 4201682230 | D20: =INDEX('[1]FEUILLE DE TRAVAIL'!$A:$AV,MATCH('Tableau Boîtes N95'!C20,'[1]FEUILLE DE TRAVAIL'!$I:$I,0),39) -> 12.42857143 | E20: =IFERROR(F20/D20,F20) -> 106.6896552 | F20: =INDEX('[1]FEUILLE DE TRAVAIL'!$A:$AV,MATCH('Tableau Boîtes N95'!C20,'[1]FEUILLE DE TRAVAIL'!$I:$I,0),19) -> 1326 | J20: 3M1870PLUS | K20: 42016822 | L20: 4201682240 | M20: =INDEX('[1]FEUILLE DE TRAVAIL'!$A:$AV,MATCH('Tableau Boîtes N95'!L20,'[1]FEUILLE DE TRAVAIL'!$I:$I,0),39) -> 26.07142857 | N20: =IFERROR(O20/M20,O20) -> 72.83835616 | O20: =INDEX('[1]FEUILLE DE TRAVAIL'!$A:$AV,MATCH('Tableau Boîtes N95'!L20,'[1]FEUILLE DE TRAVAIL'!$I:$I,0),19) -> 1899 | R20: KC46767 | S20: 70 | T20: 0 | U20: 70
A21: 800-1860 | B21: 42009417 | C21: 4200941730 | D21: =INDEX('[1]FEUILLE DE TRAVAIL'!$A:$AV,MATCH('Tableau Boîtes N95'!C21,'[1]FEUILLE DE TRAVAIL'!$I:$I,0),39) -> 1.428571429 | E21: 88.2 | F21: =INDEX('[1]FEUILLE DE TRAVAIL'!$A:$AV,MATCH('Tableau Boîtes N95'!C21,'[1]FEUILLE DE TRAVAIL'!$I:$I,0),19) -> 126 | J21: 3M8210N | K21: 42031222 | L21: 4203122240 | M21: =INDEX('[1]FEUILLE DE TRAVAIL'!$A:$AV,MATCH('Tableau Boîtes N95'!L21,'[1]FEUILLE DE TRAVAIL'!$I:$I,0),39) -> 1.428571429 | N21: 140 | O21: =INDEX('[1]FEUILLE DE TRAVAIL'!$A:$AV,MATCH('Tableau Boîtes N95'!L21,'[1]FEUILLE DE TRAVAIL'!$I:$I,0),19) -> 200 | R21: KC46827 | S21: 8365 | T21: 0 | U21: 8365
A22: 800-1860S | B22: 42009418 | C22: 4200941830 | D22: =INDEX('[1]FEUILLE DE TRAVAIL'!$A:$AV,MATCH('Tableau Boîtes N95'!C22,'[1]FEUILLE DE TRAVAIL'!$I:$I,0),39) -> 0 | E22: 166 | F22: =INDEX('[1]FEUILLE DE TRAVAIL'!$A:$AV,MATCH('Tableau Boîtes N95'!C22,'[1]FEUILLE DE TRAVAIL'!$I:$I,0),19) -> 166 | J22: 800-1860 | K22: 42009417 | L22: 4200941740 | M22: =INDEX('[1]FEUILLE DE TRAVAIL'!$A:$AV,MATCH('Tableau Boîtes N95'!L22,'[1]FEUILLE DE TRAVAIL'!$I:$I,0),39) -> 12.85714286 | N22: 42 | O22: =INDEX('[1]FEUILLE DE TRAVAIL'!$A:$AV,MATCH('Tableau Boîtes N95'!L22,'[1]FEUILLE DE TRAVAIL'!$I:$I,0),19) -> 540 | R22: KC46867 | S22: 0 | T22: 0 | U22: 0
A23: A1510 | B23: 42009438 | C23: 4200943830 | D23: =INDEX('[1]FEUILLE DE TRAVAIL'!$A:$AV,MATCH('Tableau Boîtes N95'!C23,'[1]FEUILLE DE TRAVAIL'!$I:$I,0),39) -> 1.428571429 | E23: 182 | F23: =INDEX('[1]FEUILLE DE TRAVAIL'!$A:$AV,MATCH('Tableau Boîtes N95'!C23,'[1]FEUILLE DE TRAVAIL'!$I:$I,0),19) -> 260 | J23: 800-1860S | K23: 42009418 | L23: 4200941840 | M23: =INDEX('[1]FEUILLE DE TRAVAIL'!$A:$AV,MATCH('Tableau Boîtes N95'!L23,'[1]FEUILLE DE TRAVAIL'!$I:$I,0),39) -> 17.14285714 | N23: 78.16666667 | O23: =INDEX('[1]FEUILLE DE TRAVAIL'!$A:$AV,MATCH('Tableau Boîtes N95'!L23,'[1]FEUILLE DE TRAVAIL'!$I:$I,0),19) -> 1340 | R23: KC62126 | S23: 0 | T23: 0 | U23: 0
A24: A1511 | B24: 42009440 | C24: 4200944030 | D24: =INDEX('[1]FEUILLE DE TRAVAIL'!$A:$AV,MATCH('Tableau Boîtes N95'!C24,'[1]FEUILLE DE TRAVAIL'!$I:$I,0),39) -> 0 | E24: 359 | F24: =INDEX('[1]FEUILLE DE TRAVAIL'!$A:$AV,MATCH('Tableau Boîtes N95'!C24,'[1]FEUILLE DE TRAVAIL'!$I:$I,0),19) -> 359 | J24: A1510 | K24: 42009438 | L24: 4200943840 | M24: =INDEX('[1]FEUILLE DE TRAVAIL'!$A:$AV,MATCH('Tableau Boîtes N95'!L24,'[1]FEUILLE DE TRAVAIL'!$I:$I,0),39) -> 8.571428571 | N24: 37.33333333 | O24: =INDEX('[1]FEUILLE DE TRAVAIL'!$A:$AV,MATCH('Tableau Boîtes N95'!L24,'[1]FEUILLE DE TRAVAIL'!$I:$I,0),19) -> 320 | R24: MMMM8110S | S24: 0 | T24: 0 | U24: 0
A25: A1512 | B25: 42009439 | C25: 4200943930 | D25: =INDEX('[1]FEUILLE DE TRAVAIL'!$A:$AV,MATCH('Tableau Boîtes N95'!C25,'[1]FEUILLE DE TRAVAIL'!$I:$I,0),39) -> 2.857142857 | E25: 56 | F25: =INDEX('[1]FEUILLE DE TRAVAIL'!$A:$AV,MATCH('Tableau Boîtes N95'!C25,'[1]FEUILLE DE TRAVAIL'!$I:$I,0),19) -> 160 | J25: A1511 | K25: 42009440 | L25: 4200944040 | M25: =INDEX('[1]FEUILLE DE TRAVAIL'!$A:$AV,MATCH('Tableau Boîtes N95'!L25,'[1]FEUILLE DE TRAVAIL'!$I:$I,0),39) -> 8.571428571 | N25: 32.66666667 | O25: =INDEX('[1]FEUILLE DE TRAVAIL'!$A:$AV,MATCH('Tableau Boîtes N95'!L25,'[1]FEUILLE DE TRAVAIL'!$I:$I,0),19) -> 280 | R25: 203314 | S25: 622250 | T25: 482.1428571 | U25: =IFERROR(S25/T25,S25) -> 1290.592593
A26: A1513 | B26: 42034311 | C26: 4203431130 | D26: =INDEX('[1]FEUILLE DE TRAVAIL'!$A:$AV,MATCH('Tableau Boîtes N95'!C26,'[1]FEUILLE DE TRAVAIL'!$I:$I,0),39) -> 0 | E26: 69 | F26: =INDEX('[1]FEUILLE DE TRAVAIL'!$A:$AV,MATCH('Tableau Boîtes N95'!C26,'[1]FEUILLE DE TRAVAIL'!$I:$I,0),19) -> 69 | J26: A1512 | K26: 42009439 | L26: 4200943940 | M26: =INDEX('[1]FEUILLE DE TRAVAIL'!$A:$AV,MATCH('Tableau Boîtes N95'!L26,'[1]FEUILLE DE TRAVAIL'!$I:$I,0),39) -> 8.571428571 | N26: 44.33333333 | O26: =INDEX('[1]FEUILLE DE TRAVAIL'!$A:$AV,MATCH('Tableau Boîtes N95'!L26,'[1]FEUILLE DE TRAVAIL'!$I:$I,0),19) -> 380 | R26: 203214 | S26: 242750 | T26: 235.7142857 | U26: 1029.848485
A27: KC46727 | B27: 42009446 | C27: 4200944630 | D27: =INDEX('[1]FEUILLE DE TRAVAIL'!$A:$AV,MATCH('Tableau Boîtes N95'!C27,'[1]FEUILLE DE TRAVAIL'!$I:$I,0),39) -> 0 | E27: 0 | F27: =INDEX('[1]FEUILLE DE TRAVAIL'!$A:$AV,MATCH('Tableau Boîtes N95'!C27,'[1]FEUILLE DE TRAVAIL'!$I:$I,0),19) -> 0 | J27: A1513 | K27: 42034311 | L27: 4203431140 | M27: =INDEX('[1]FEUILLE DE TRAVAIL'!$A:$AV,MATCH('Tableau Boîtes N95'!L27,'[1]FEUILLE DE TRAVAIL'!$I:$I,0),39) -> 0 | N27: =IFERROR(O27/M27,O27) -> 840 | O27: =INDEX('[1]FEUILLE DE TRAVAIL'!$A:$AV,MATCH('Tableau Boîtes N95'!L27,'[1]FEUILLE DE TRAVAIL'!$I:$I,0),19) -> 840 | R27: 203414 | S27: 358750 | T27: 185.7142857 | U27: 1931.730769
A28: KC46767 | B28: 42016845 | C28: 4201684530 | D28: =INDEX('[1]FEUILLE DE TRAVAIL'!$A:$AV,MATCH('Tableau Boîtes N95'!C28,'[1]FEUILLE DE TRAVAIL'!$I:$I,0),39) -> 0 | E28: 105 | F28: =INDEX('[1]FEUILLE DE TRAVAIL'!$A:$AV,MATCH('Tableau Boîtes N95'!C28,'[1]FEUILLE DE TRAVAIL'!$I:$I,0),19) -> 105 | J28: KC46727 | K28: 42009446 | L28: 4200944640 | M28: =INDEX('[1]FEUILLE DE TRAVAIL'!$A:$AV,MATCH('Tableau Boîtes N95'!L28,'[1]FEUILLE DE TRAVAIL'!$I:$I,0),39) -> 17.5 | N28: =IFERROR(O28/M28,O28) -> 15.94285714 | O28: =INDEX('[1]FEUILLE DE TRAVAIL'!$A:$AV,MATCH('Tableau Boîtes N95'!L28,'[1]FEUILLE DE TRAVAIL'!$I:$I,0),19) -> 279
A29: KC62126 | B29: 42009426 | C29: 4200942630 | D29: =INDEX('[1]FEUILLE DE TRAVAIL'!$A:$AV,MATCH('Tableau Boîtes N95'!C29,'[1]FEUILLE DE TRAVAIL'!$I:$I,0),39) -> 0 | E29: 50 | F29: =INDEX('[1]FEUILLE DE TRAVAIL'!$A:$AV,MATCH('Tableau Boîtes N95'!C29,'[1]FEUILLE DE TRAVAIL'!$I:$I,0),19) -> 50 | J29: KC46767 | K29: 42016845 | L29: 4201684540 | M29: =INDEX('[1]FEUILLE DE TRAVAIL'!$A:$AV,MATCH('Tableau Boîtes N95'!L29,'[1]FEUILLE DE TRAVAIL'!$I:$I,0),39) -> 0 | N29: 0 | O29: =INDEX('[1]FEUILLE DE TRAVAIL'!$A:$AV,MATCH('Tableau Boîtes N95'!L29,'[1]FEUILLE DE TRAVAIL'!$I:$I,0),19) -> 0
A30: MMMM8110S | B30: 42050242 | C30: 4205024230 | D30: =INDEX('[1]FEUILLE DE TRAVAIL'!$A:$AV,MATCH('Tableau Boîtes N95'!C30,'[1]FEUILLE DE TRAVAIL'!$I:$I,0),39) -> 0 | E30: 0 | F30: =INDEX('[1]FEUILLE DE TRAVAIL'!$A:$AV,MATCH('Tableau Boîtes N95'!C30,'[1]FEUILLE DE TRAVAIL'!$I:$I,0),19) -> 0 | J30: KC46827 | K30: 42039566 | L30: 4203956640 | M30: =INDEX('[1]FEUILLE DE TRAVAIL'!$A:$AV,MATCH('Tableau Boîtes N95'!L30,'[1]FEUILLE DE TRAVAIL'!$I:$I,0),39) -> 7.5 | N30: 93.33333333 | O30: =INDEX('[1]FEUILLE DE TRAVAIL'!$A:$AV,MATCH('Tableau Boîtes N95'!L30,'[1]FEUILLE DE TRAVAIL'!$I:$I,0),19) -> 700
A31: 203214 - MEDICOM PETIT | B31: 42052187 | C31: 4205218730 | D31: =INDEX('[1]FEUILLE DE TRAVAIL'!$A:$AV,MATCH('Tableau Boîtes N95'!C31,'[1]FEUILLE DE TRAVAIL'!$I:$I,0),39) -> 78.57142857 | E31: 38.18181818 | F31: =INDEX('[1]FEUILLE DE TRAVAIL'!$A:$AV,MATCH('Tableau Boîtes N95'!C31,'[1]FEUILLE DE TRAVAIL'!$I:$I,0),19) -> 3000 | J31: KC46867 | K31: 42018167 | L31: 4201816740 | M31: =INDEX('[1]FEUILLE DE TRAVAIL'!$A:$AV,MATCH('Tableau Boîtes N95'!L31,'[1]FEUILLE DE TRAVAIL'!$I:$I,0),39) -> 0 | N31: 0 | O31: =INDEX('[1]FEUILLE DE TRAVAIL'!$A:$AV,MATCH('Tableau Boîtes N95'!L31,'[1]FEUILLE DE TRAVAIL'!$I:$I,0),19) -> 0
A32: 203314 - MEDICOM MOYEN | B32: 42052188 | C32: 4205218830 | D32: =INDEX('[1]FEUILLE DE TRAVAIL'!$A:$AV,MATCH('Tableau Boîtes N95'!C32,'[1]FEUILLE DE TRAVAIL'!$I:$I,0),39) -> 128.5714286 | E32: 22.52444444 | F32: =INDEX('[1]FEUILLE DE TRAVAIL'!$A:$AV,MATCH('Tableau Boîtes N95'!C32,'[1]FEUILLE DE TRAVAIL'!$I:$I,0),19) -> 2896 | J32: KC62126 | K32: 42009426 | L32: 4200942640 | M32: =INDEX('[1]FEUILLE DE TRAVAIL'!$A:$AV,MATCH('Tableau Boîtes N95'!L32,'[1]FEUILLE DE TRAVAIL'!$I:$I,0),39) -> 8.571428571 | N32: 32.08333333 | O32: =INDEX('[1]FEUILLE DE TRAVAIL'!$A:$AV,MATCH('Tableau Boîtes N95'!L32,'[1]FEUILLE DE TRAVAIL'!$I:$I,0),19) -> 275
A33: 203414 - MEDICOM LARGE | B33: 42053531 | C33: 4205353130 | D33: =INDEX('[1]FEUILLE DE TRAVAIL'!$A:$AV,MATCH('Tableau Boîtes N95'!C33,'[1]FEUILLE DE TRAVAIL'!$I:$I,0),39) -> 3.571428571 | E33: 182 | F33: =INDEX('[1]FEUILLE DE TRAVAIL'!$A:$AV,MATCH('Tableau Boîtes N95'!C33,'[1]FEUILLE DE TRAVAIL'!$I:$I,0),19) -> 650 | J33: MMMM8110S | K33: 42050242 | L33: 4205024240 | M33: =INDEX('[1]FEUILLE DE TRAVAIL'!$A:$AV,MATCH('Tableau Boîtes N95'!L33,'[1]FEUILLE DE TRAVAIL'!$I:$I,0),39) -> 0 | N33: 0 | O33: =INDEX('[1]FEUILLE DE TRAVAIL'!$A:$AV,MATCH('Tableau Boîtes N95'!L33,'[1]FEUILLE DE TRAVAIL'!$I:$I,0),19) -> 0
A34: F550 - CHAMPAK | B34: 42053795 | C34: 4205379530 | D34: =INDEX('[1]FEUILLE DE TRAVAIL'!$A:$AV,MATCH('Tableau Boîtes N95'!C34,'[1]FEUILLE DE TRAVAIL'!$I:$I,0),39) -> 6.428571429 | E34: 200.6666667 | F34: =INDEX('[1]FEUILLE DE TRAVAIL'!$A:$AV,MATCH('Tableau Boîtes N95'!C34,'[1]FEUILLE DE TRAVAIL'!$I:$I,0),19) -> 1290 | J34: 203214 - MEDICOM PETIT | K34: 42052187 | L34: 4205218740 | M34: =INDEX('[1]FEUILLE DE TRAVAIL'!$A:$AV,MATCH('Tableau Boîtes N95'!L34,'[1]FEUILLE DE TRAVAIL'!$I:$I,0),39) -> 153.5714286 | N34: =IFERROR(O34/M34,O34) -> 35.81395349 | O34: =INDEX('[1]FEUILLE DE TRAVAIL'!$A:$AV,MATCH('Tableau Boîtes N95'!L34,'[1]FEUILLE DE TRAVAIL'!$I:$I,0),19) -> 5500
J35: 203314 - MEDICOM MOYEN | K35: 42052188 | L35: 4205218840 | M35: =INDEX('[1]FEUILLE DE TRAVAIL'!$A:$AV,MATCH('Tableau Boîtes N95'!L35,'[1]FEUILLE DE TRAVAIL'!$I:$I,0),39) -> 210.7142857 | N35: 18.27118644 | O35: =INDEX('[1]FEUILLE DE TRAVAIL'!$A:$AV,MATCH('Tableau Boîtes N95'!L35,'[1]FEUILLE DE TRAVAIL'!$I:$I,0),19) -> 3850
A36: Saint-Eustache - 60 | J36: 203414 - MEDICOM LARGE | K36: 42053531 | L36: 4205353140 | M36: =INDEX('[1]FEUILLE DE TRAVAIL'!$A:$AV,MATCH('Tableau Boîtes N95'!L36,'[1]FEUILLE DE TRAVAIL'!$I:$I,0),39) -> 17.85714286 | N36: =IFERROR(O36/M36,O36) -> 50.4 | O36: =INDEX('[1]FEUILLE DE TRAVAIL'!$A:$AV,MATCH('Tableau Boîtes N95'!L36,'[1]FEUILLE DE TRAVAIL'!$I:$I,0),19) -> 900
A37: Masques | B37: GRM | C37: Concatener | D37: Moyenne consommation | E37: Nombre de jours restants | F37: =F2 -> Quantité en inventaire en unité | G37: =G2 -> Prévision pour 14 jours | J37: F550 - CHAMPAK | K37: 42053795 | L37: 4205379540 | M37: =INDEX('[1]FEUILLE DE TRAVAIL'!$A:$AV,MATCH('Tableau Boîtes N95'!L37,'[1]FEUILLE DE TRAVAIL'!$I:$I,0),39) -> 40 | N37: =IFERROR(O37/M37,O37) -> 55.7 | O37: =INDEX('[1]FEUILLE DE TRAVAIL'!$A:$AV,MATCH('Tableau Boîtes N95'!L37,'[1]FEUILLE DE TRAVAIL'!$I:$I,0),19) -> 2228
A38: 3M1870PLUS | B38: 42016822 | C38: 4201682260 | D38: =INDEX('[1]FEUILLE DE TRAVAIL'!$A:$AV,MATCH('Tableau Boîtes N95'!C38,'[1]FEUILLE DE TRAVAIL'!$I:$I,0),39) -> 52.85714286 | E38: =IFERROR(F38/D38,F38) -> 6.243243243 | F38: =INDEX('[1]FEUILLE DE TRAVAIL'!$A:$AV,MATCH('Tableau Boîtes N95'!C38,'[1]FEUILLE DE TRAVAIL'!$I:$I,0),19) -> 330
A39: 3M8210N | B39: 42031222 | C39: 4203122260 | D39: =INDEX('[1]FEUILLE DE TRAVAIL'!$A:$AV,MATCH('Tableau Boîtes N95'!C39,'[1]FEUILLE DE TRAVAIL'!$I:$I,0),39) -> 0 | E39: 660 | F39: =INDEX('[1]FEUILLE DE TRAVAIL'!$A:$AV,MATCH('Tableau Boîtes N95'!C39,'[1]FEUILLE DE TRAVAIL'!$I:$I,0),19) -> 660 | J39: Lachute - 80
A40: 800-1860 | B40: 42009417 | C40: 4200941760 | D40: =INDEX('[1]FEUILLE DE TRAVAIL'!$A:$AV,MATCH('Tableau Boîtes N95'!C40,'[1]FEUILLE DE TRAVAIL'!$I:$I,0),39) -> 10 | E40: 38 | F40: =INDEX('[1]FEUILLE DE TRAVAIL'!$A:$AV,MATCH('Tableau Boîtes N95'!C40,'[1]FEUILLE DE TRAVAIL'!$I:$I,0),19) -> 380 | J40: Masques | K40: GRM | L40: Concatener | M40: Moyenne consommation | N40: Nombre de jours restants | O40: =F2 -> Quantité en inventaire en unité | P40: =G2 -> Prévision pour 14 jours
A41: 800-1860S | B41: 42009418 | C41: 4200941860 | D41: =INDEX('[1]FEUILLE DE TRAVAIL'!$A:$AV,MATCH('Tableau Boîtes N95'!C41,'[1]FEUILLE DE TRAVAIL'!$I:$I,0),39) -> 10 | E41: 68 | F41: =INDEX('[1]FEUILLE DE TRAVAIL'!$A:$AV,MATCH('Tableau Boîtes N95'!C41,'[1]FEUILLE DE TRAVAIL'!$I:$I,0),19) -> 680 | J41: 3M1870PLUS | K41: 42016822 | L41: 4201682280 | M41: =INDEX('[1]FEUILLE DE TRAVAIL'!$A:$AV,MATCH('Tableau Boîtes N95'!L41,'[1]FEUILLE DE TRAVAIL'!$I:$I,0),39) -> 0 | N41: =IFERROR(O41/M41,O41) -> 560 | O41: =INDEX('[1]FEUILLE DE TRAVAIL'!$A:$AV,MATCH('Tableau Boîtes N95'!L41,'[1]FEUILLE DE TRAVAIL'!$I:$I,0),19) -> 560
A42: A1510 | B42: 42009438 | C42: 4200943860 | D42: =INDEX('[1]FEUILLE DE TRAVAIL'!$A:$AV,MATCH('Tableau Boîtes N95'!C42,'[1]FEUILLE DE TRAVAIL'!$I:$I,0),39) -> 2.857142857 | E42: 63 | F42: =INDEX('[1]FEUILLE DE TRAVAIL'!$A:$AV,MATCH('Tableau Boîtes N95'!C42,'[1]FEUILLE DE TRAVAIL'!$I:$I,0),19) -> 180 | J42: 3M8210N | K42: 42031222 | L42: 4203122280 | M42: =INDEX('[1]FEUILLE DE TRAVAIL'!$A:$AV,MATCH('Tableau Boîtes N95'!L42,'[1]FEUILLE DE TRAVAIL'!$I:$I,0),39) -> 0 | N42: 240 | O42: =INDEX('[1]FEUILLE DE TRAVAIL'!$A:$AV,MATCH('Tableau Boîtes N95'!L42,'[1]FEUILLE DE TRAVAIL'!$I:$I,0),19) -> 240
A43: A1511 | B43: 42009440 | C43: 4200944060 | D43: =INDEX('[1]FEUILLE DE TRAVAIL'!$A:$AV,MATCH('Tableau Boîtes N95'!C43,'[1]FEUILLE DE TRAVAIL'!$I:$I,0),39) -> 1.428571429 | E43: 266 | F43: =INDEX('[1]FEUILLE DE TRAVAIL'!$A:$AV,MATCH('Tableau Boîtes N95'!C43,'[1]FEUILLE DE TRAVAIL'!$I:$I,0),19) -> 380 | J43: 800-1860 | K43: 42009417 | L43: 4200941780 | M43: =INDEX('[1]FEUILLE DE TRAVAIL'!$A:$AV,MATCH('Tableau Boîtes N95'!L43,'[1]FEUILLE DE TRAVAIL'!$I:$I,0),39) -> 0 | N43: 180 | O43: =INDEX('[1]FEUILLE DE TRAVAIL'!$A:$AV,MATCH('Tableau Boîtes N95'!L43,'[1]FEUILLE DE TRAVAIL'!$I:$I,0),19) -> 180
A44: A1512 | B44: 42009439 | C44: 4200943960 | D44: =INDEX('[1]FEUILLE DE TRAVAIL'!$A:$AV,MATCH('Tableau Boîtes N95'!C44,'[1]FEUILLE DE TRAVAIL'!$I:$I,0),39) -> 17.14285714 | E44: 24.5 | F44: =INDEX('[1]FEUILLE DE TRAVAIL'!$A:$AV,MATCH('Tableau Boîtes N95'!C44,'[1]FEUILLE DE TRAVAIL'!$I:$I,0),19) -> 420 | J44: 800-1860S | K44: 42009418 | L44: 4200941880 | M44: =INDEX('[1]FEUILLE DE TRAVAIL'!$A:$AV,MATCH('Tableau Boîtes N95'!L44,'[1]FEUILLE DE TRAVAIL'!$I:$I,0),39) -> 0 | N44: 280 | O44: =INDEX('[1]FEUILLE DE TRAVAIL'!$A:$AV,MATCH('Tableau Boîtes N95'!L44,'[1]FEUILLE DE TRAVAIL'!$I:$I,0),19) -> 280
A45: A1517 | B45: 42039568 | C45: 4203956860 | D45: =INDEX('[1]FEUILLE DE TRAVAIL'!$A:$AV,MATCH('Tableau Boîtes N95'!C45,'[1]FEUILLE DE TRAVAIL'!$I:$I,0),39) -> 0 | E45: 160 | F45: =INDEX('[1]FEUILLE DE TRAVAIL'!$A:$AV,MATCH('Tableau Boîtes N95'!C45,'[1]FEUILLE DE TRAVAIL'!$I:$I,0),19) -> 160 | J45: A1510 | K45: 42009438 | L45: 4200943880 | M45: =INDEX('[1]FEUILLE DE TRAVAIL'!$A:$AV,MATCH('Tableau Boîtes N95'!L45,'[1]FEUILLE DE TRAVAIL'!$I:$I,0),39) -> 0 | N45: 200 | O45: =INDEX('[1]FEUILLE DE TRAVAIL'!$A:$AV,MATCH('Tableau Boîtes N95'!L45,'[1]FEUILLE DE TRAVAIL'!$I:$I,0),19) -> 200
A46: KC46727 | B46: 42009446 | C46: 4200944660 | D46: =INDEX('[1]FEUILLE DE TRAVAIL'!$A:$AV,MATCH('Tableau Boîtes N95'!C46,'[1]FEUILLE DE TRAVAIL'!$I:$I,0),39) -> 12.5 | E46: 56 | F46: =INDEX('[1]FEUILLE DE TRAVAIL'!$A:$AV,MATCH('Tableau Boîtes N95'!C46,'[1]FEUILLE DE TRAVAIL'!$I:$I,0),19) -> 700 | J46: A1511 | K46: 42009440 | L46: 4200944080 | M46: =INDEX('[1]FEUILLE DE TRAVAIL'!$A:$AV,MATCH('Tableau Boîtes N95'!L46,'[1]FEUILLE DE TRAVAIL'!$I:$I,0),39) -> 0 | N46: 155 | O46: =INDEX('[1]FEUILLE DE TRAVAIL'!$A:$AV,MATCH('Tableau Boîtes N95'!L46,'[1]FEUILLE DE TRAVAIL'!$I:$I,0),19) -> 155
A47: KC46767 | B47: 42016845 | C47: 4201684560 | D47: =INDEX('[1]FEUILLE DE TRAVAIL'!$A:$AV,MATCH('Tableau Boîtes N95'!C47,'[1]FEUILLE DE TRAVAIL'!$I:$I,0),39) -> 0 | E47: 0 | F47: =INDEX('[1]FEUILLE DE TRAVAIL'!$A:$AV,MATCH('Tableau Boîtes N95'!C47,'[1]FEUILLE DE TRAVAIL'!$I:$I,0),19) -> 0 | J47: A1512 | K47: 42009439 | L47: 4200943980 | M47: =INDEX('[1]FEUILLE DE TRAVAIL'!$A:$AV,MATCH('Tableau Boîtes N95'!L47,'[1]FEUILLE DE TRAVAIL'!$I:$I,0),39) -> 0 | N47: 160 | O47: =INDEX('[1]FEUILLE DE TRAVAIL'!$A:$AV,MATCH('Tableau Boîtes N95'!L47,'[1]FEUILLE DE TRAVAIL'!$I:$I,0),19) -> 160
A48: KC46827 | B48: 42039566 | C48: 4203956660 | D48: =INDEX('[1]FEUILLE DE TRAVAIL'!$A:$AV,MATCH('Tableau Boîtes N95'!C48,'[1]FEUILLE DE TRAVAIL'!$I:$I,0),39) -> 7.5 | E48: 60.66666667 | F48: =INDEX('[1]FEUILLE DE TRAVAIL'!$A:$AV,MATCH('Tableau Boîtes N95'!C48,'[1]FEUILLE DE TRAVAIL'!$I:$I,0),19) -> 455 | J48: A1513 | K48: 42034311 | L48: 4203431180 | M48: =INDEX('[1]FEUILLE DE TRAVAIL'!$A:$AV,MATCH('Tableau Boîtes N95'!L48,'[1]FEUILLE DE TRAVAIL'!$I:$I,0),39) -> 0 | N48: =IFERROR(O48/M48,O48) -> 60 | O48: =INDEX('[1]FEUILLE DE TRAVAIL'!$A:$AV,MATCH('Tableau Boîtes N95'!L48,'[1]FEUILLE DE TRAVAIL'!$I:$I,0),19) -> 60
A49: KC46867 | B49: 42018167 | C49: 4201816760 | D49: =INDEX('[1]FEUILLE DE TRAVAIL'!$A:$AV,MATCH('Tableau Boîtes N95'!C49,'[1]FEUILLE DE TRAVAIL'!$I:$I,0),39) -> 0 | E49: 0 | F49: =INDEX('[1]FEUILLE DE TRAVAIL'!$A:$AV,MATCH('Tableau Boîtes N95'!C49,'[1]FEUILLE DE TRAVAIL'!$I:$I,0),19) -> 0 | J49: A1517 | K49: 42039568 | L49: 4203956880 | M49: =INDEX('[1]FEUILLE DE TRAVAIL'!$A:$AV,MATCH('Tableau Boîtes N95'!L49,'[1]FEUILLE DE TRAVAIL'!$I:$I,0),39) -> 0 | N49: =IFERROR(O49/M49,O49) -> 0 | O49: =INDEX('[1]FEUILLE DE TRAVAIL'!$A:$AV,MATCH('Tableau Boîtes N95'!L49,'[1]FEUILLE DE TRAVAIL'!$I:$I,0),19) -> 0
A50: KC62126 | B50: 42009426 | C50: 4200942660 | D50: =INDEX('[1]FEUILLE DE TRAVAIL'!$A:$AV,MATCH('Tableau Boîtes N95'!C50,'[1]FEUILLE DE TRAVAIL'!$I:$I,0),39) -> 0 | E50: 27 | F50: =INDEX('[1]FEUILLE DE TRAVAIL'!$A:$AV,MATCH('Tableau Boîtes N95'!C50,'[1]FEUILLE DE TRAVAIL'!$I:$I,0),19) -> 27 | J50: KC46727 | K50: 42009446 | L50: 4200944680 | M50: =INDEX('[1]FEUILLE DE TRAVAIL'!$A:$AV,MATCH('Tableau Boîtes N95'!L50,'[1]FEUILLE DE TRAVAIL'!$I:$I,0),39) -> 0 | N50: 0 | O50: =INDEX('[1]FEUILLE DE TRAVAIL'!$A:$AV,MATCH('Tableau Boîtes N95'!L50,'[1]FEUILLE DE TRAVAIL'!$I:$I,0),19) -> 0
A51: MMMM8110S | B51: 42050242 | C51: 4205024260 | D51: =INDEX('[1]FEUILLE DE TRAVAIL'!$A:$AV,MATCH('Tableau Boîtes N95'!C51,'[1]FEUILLE DE TRAVAIL'!$I:$I,0),39) -> 0 | E51: =IFERROR(F51/D51,F51) -> 20 | F51: =INDEX('[1]FEUILLE DE TRAVAIL'!$A:$AV,MATCH('Tableau Boîtes N95'!C51,'[1]FEUILLE DE TRAVAIL'!$I:$I,0),19) -> 20 | J51: KC46767 | K51: 42016845 | L51: 4201684580 | M51: =INDEX('[1]FEUILLE DE TRAVAIL'!$A:$AV,MATCH('Tableau Boîtes N95'!L51,'[1]FEUILLE DE TRAVAIL'!$I:$I,0),39) -> 0 | N51: 210 | O51: =INDEX('[1]FEUILLE DE TRAVAIL'!$A:$AV,MATCH('Tableau Boîtes N95'!L51,'[1]FEUILLE DE TRAVAIL'!$I:$I,0),19) -> 210
A52: 203214 - MEDICOM PETIT | B52: 42052187 | C52: 4205218760 | D52: =INDEX('[1]FEUILLE DE TRAVAIL'!$A:$AV,MATCH('Tableau Boîtes N95'!C52,'[1]FEUILLE DE TRAVAIL'!$I:$I,0),39) -> 210.7142857 | E52: =IFERROR(F52/D52,F52) -> 21.11864407 | F52: =INDEX('[1]FEUILLE DE TRAVAIL'!$A:$AV,MATCH('Tableau Boîtes N95'!C52,'[1]FEUILLE DE TRAVAIL'!$I:$I,0),19) -> 4450 | J52: KC46827 | K52: 42039566 | L52: 4203956680 | M52: =INDEX('[1]FEUILLE DE TRAVAIL'!$A:$AV,MATCH('Tableau Boîtes N95'!L52,'[1]FEUILLE DE TRAVAIL'!$I:$I,0),39) -> 0 | N52: 175 | O52: =INDEX('[1]FEUILLE DE TRAVAIL'!$A:$AV,MATCH('Tableau Boîtes N95'!L52,'[1]FEUILLE DE TRAVAIL'!$I:$I,0),19) -> 175
A53: 203314 - MEDICOM MOYEN | B53: 42052188 | C53: 4205218860 | D53: =INDEX('[1]FEUILLE DE TRAVAIL'!$A:$AV,MATCH('Tableau Boîtes N95'!C53,'[1]FEUILLE DE TRAVAIL'!$I:$I,0),39) -> 403.5714286 | E53: 13.62831858 | F53: =INDEX('[1]FEUILLE DE TRAVAIL'!$A:$AV,MATCH('Tableau Boîtes N95'!C53,'[1]FEUILLE DE TRAVAIL'!$I:$I,0),19) -> 5500 | J53: KC62126 | K53: 42009426 | L53: 4200942680 | M53: =INDEX('[1]FEUILLE DE TRAVAIL'!$A:$AV,MATCH('Tableau Boîtes N95'!L53,'[1]FEUILLE DE TRAVAIL'!$I:$I,0),39) -> 0 | N53: 100 | O53: =INDEX('[1]FEUILLE DE TRAVAIL'!$A:$AV,MATCH('Tableau Boîtes N95'!L53,'[1]FEUILLE DE TRAVAIL'!$I:$I,0),19) -> 100
A54: 203414 - MEDICOM LARGE | B54: 42053531 | C54: 4205353160 | D54: =INDEX('[1]FEUILLE DE TRAVAIL'!$A:$AV,MATCH('Tableau Boîtes N95'!C54,'[1]FEUILLE DE TRAVAIL'!$I:$I,0),39) -> 21.42857143 | E54: =IFERROR(F54/D54,F54) -> 249.5733333 | F54: =INDEX('[1]FEUILLE DE TRAVAIL'!$A:$AV,MATCH('Tableau Boîtes N95'!C54,'[1]FEUILLE DE TRAVAIL'!$I:$I,0),19) -> 5348 | J54: 203214 - MEDICOM PETIT | K54: 42052187 | L54: 4205218780 | M54: =INDEX('[1]FEUILLE DE TRAVAIL'!$A:$AV,MATCH('Tableau Boîtes N95'!L54,'[1]FEUILLE DE TRAVAIL'!$I:$I,0),39) -> 35.71428571 | N54: =IFERROR(O54/M54,O54) -> 91 | O54: =INDEX('[1]FEUILLE DE TRAVAIL'!$A:$AV,MATCH('Tableau Boîtes N95'!L54,'[1]FEUILLE DE TRAVAIL'!$I:$I,0),19) -> 3250
A55: F550 - CHAMPAK | B55: 42053795 | C55: 4205379560 | D55: =INDEX('[1]FEUILLE DE TRAVAIL'!$A:$AV,MATCH('Tableau Boîtes N95'!C55,'[1]FEUILLE DE TRAVAIL'!$I:$I,0),39) -> 6.428571429 | E55: =IFERROR(F55/D55,F55) -> 81.51111111 | F55: =INDEX('[1]FEUILLE DE TRAVAIL'!$A:$AV,MATCH('Tableau Boîtes N95'!C55,'[1]FEUILLE DE TRAVAIL'!$I:$I,0),19) -> 524 | J55: 203314 - MEDICOM MOYEN | K55: 42052188 | L55: 4205218880 | M55: =INDEX('[1]FEUILLE DE TRAVAIL'!$A:$AV,MATCH('Tableau Boîtes N95'!L55,'[1]FEUILLE DE TRAVAIL'!$I:$I,0),39) -> 117.8571429 | N55: 16.54545455 | O55: =INDEX('[1]FEUILLE DE TRAVAIL'!$A:$AV,MATCH('Tableau Boîtes N95'!L55,'[1]FEUILLE DE TRAVAIL'!$I:$I,0),19) -> 1950
J56: 203414 - MEDICOM LARGE | K56: 42053531 | L56: 4205353180 | M56: =INDEX('[1]FEUILLE DE TRAVAIL'!$A:$AV,MATCH('Tableau Boîtes N95'!L56,'[1]FEUILLE DE TRAVAIL'!$I:$I,0),39) -> 0 | N56: =IFERROR(O56/M56,O56) -> 0 | O56: =INDEX('[1]FEUILLE DE TRAVAIL'!$A:$AV,MATCH('Tableau Boîtes N95'!L56,'[1]FEUILLE DE TRAVAIL'!$I:$I,0),19) -> 0
J57: F550 - CHAMPAK | K57: 42053795 | L57: 4205379580 | M57: =INDEX('[1]FEUILLE DE TRAVAIL'!$A:$AV,MATCH('Tableau Boîtes N95'!L57,'[1]FEUILLE DE TRAVAIL'!$I:$I,0),39) -> 0 | N57: =IFERROR(O57/M57,O57) -> 120 | O57: =INDEX('[1]FEUILLE DE TRAVAIL'!$A:$AV,MATCH('Tableau Boîtes N95'!L57,'[1]FEUILLE DE TRAVAIL'!$I:$I,0),19) -> 120

Sheet Boîtes Masque à cartouches
A1: Masque à cartouches
A2: DESCRIPTION COURTE | B2: Demi Masque Grandeur | C2: Somme de STOCK | K2: CISSS
A3: Demi-masque réutilisable | B3: Large | C3: 1433 | K3: =IF(C3>=1000,"3 Boîtes",IF(AND(C3<1000,C3>=500),"2 Boîtes",IF(AND(C3<500,C3>=50),"1 Boîte","0 Boîte"))) -> 3 Boîtes
B4: Moyen | C4: 3816 | K4: =IF(C4>=1000,"3 Boîtes",IF(AND(C4<1000,C4>=500),"2 Boîtes",IF(AND(C4<500,C4>=50),"1 Boîte","0 Boîte"))) -> 3 Boîtes
B5: Small | C5: 3024 | K5: =IF(C5>=1000,"3 Boîtes",IF(AND(C5<1000,C5>=500),"2 Boîtes",IF(AND(C5<500,C5>=50),"1 Boîte","0 Boîte"))) -> 3 Boîtes
A7: Légende
A8: 0 Boîte
A9: 1 Boîte
A10: 2 Boîtes
A11: 3 Boîtes

Sheet Boîtes Cartouches
A1: Cartouches
A2: DESCRIPTION COURTE | B2: Code d'article | C2: Somme de STOCK | D2: CISSS
A3: Cartouches | B3: 3M2091 | C3: 3871 | D3: =IF(C3>=1000,"3 Boîtes",IF(AND(C3<1000,C3>=500),"2 Boîtes",IF(AND(C3<500,C3>=50),"1 Boîte","0 Boîte"))) -> 3 Boîtes
B4: 3M60923 | C4: 3469 | D4: =IF(C4>=1000,"3 Boîtes",IF(AND(C4<1000,C4>=500),"2 Boîtes",IF(AND(C4<500,C4>=50),"1 Boîte","0 Boîte"))) -> 3 Boîtes
B5: 3M7093 | C5: 560 | D5: 2 Boîtes
B6: MMM60926 | C6: 3120 | D6: 3 Boîtes
B7: SM913 | C7: 1207 | D7: 3 Boîtes
A10: Légende
A11: 0 Boîte
A12: 1 Boîte
A13: 2 Boîtes
A14: 3 Boîtes
